[Event "Titled Tuesday Blitz August 15 Early 2023"]
[White "Bashirli, Saadat"]
[Black "Hajiyev, Kanan"]
[WhiteFideId "13429990"]
[BlackFideId "13404148"]
[WhiteElo "2369"]
[BlackElo "2530"]
[Result "1/2-1/2"]
[Round "11"]
[TimeControl "180+1"]
[Date "2023.08.15"]
[WhiteClock "0:00:44"]
[BlackClock "0:01:24"]
[Board "86"]

1. d4 {[%clk 0:03:00]}  Nf6 {[%clk 0:02:59]} 2. e3 {[%clk 0:03:01]}  e6 {[%clk 0:03:00]} 3. Bd3 {[%clk 0:03:00]}  c5 {[%clk 0:03:01]} 4. c3 {[%clk 0:03:00]}  b6 {[%clk 0:03:00]} 5. f4 {[%clk 0:02:58]}  Bb7 {[%clk 0:03:01]} 6. Nf3 {[%clk 0:02:58]}  Be7 {[%clk 0:03:01]} 7. O-O {[%clk 0:02:58]}  O-O {[%clk 0:03:02]} 8. Nbd2 {[%clk 0:02:57]}  d5 {[%clk 0:03:00]} 9. Qe2 {[%clk 0:02:57]}  Nc6 {[%clk 0:03:00]} 10. b3 {[%clk 0:02:56]}  Rc8 {[%clk 0:02:58]} 11. Bb2 {[%clk 0:02:55]}  a5 {[%clk 0:02:52]} 12. a4 {[%clk 0:02:54]}  cxd4 {[%clk 0:02:48]} 13. exd4 {[%clk 0:02:53]}  Bd6 {[%clk 0:02:48]} 14. Ne5 {[%clk 0:02:52]}  g6 {[%clk 0:02:47]} 15. Rf3 {[%clk 0:02:50]}  Kg7 {[%clk 0:02:45]} 16. Rh3 {[%clk 0:02:49]}  Ne7 {[%clk 0:02:45]} 17. g4 {[%clk 0:02:44]}  Bxe5 {[%clk 0:02:32]} 18. fxe5 {[%clk 0:02:42]}  Ne4 {[%clk 0:02:31]} 19. Nxe4 {[%clk 0:02:38]}  dxe4 {[%clk 0:02:32]} 20. Bxe4 {[%clk 0:02:38]}  Bxe4 {[%clk 0:02:22]} 21. Qxe4 {[%clk 0:02:36]}  h6 {[%clk 0:02:15]} 22. Rf1 {[%clk 0:02:31]}  Qd5 {[%clk 0:02:12]} 23. Qf4 {[%clk 0:02:25]}  Ng8 {[%clk 0:02:12]} 24. c4 {[%clk 0:02:18]}  Qd7 {[%clk 0:02:09]} 25. d5 {[%clk 0:02:13]}  Qe7 {[%clk 0:02:03]} 26. Qd4 {[%clk 0:01:52]}  Qc5 {[%clk 0:01:59]} 27. Qxc5 {[%clk 0:01:50]}  bxc5 {[%clk 0:01:59]} 28. d6 {[%clk 0:01:46]}  Rb8 {[%clk 0:01:58]} 29. Ba3 {[%clk 0:01:43]}  Rfc8 {[%clk 0:01:57]} 30. Rhf3 {[%clk 0:01:40]}  Rb7 {[%clk 0:01:56]} 31. Rb1 {[%clk 0:01:30]}  g5 {[%clk 0:01:56]} 32. h3 {[%clk 0:01:28]}  Rcb8 {[%clk 0:01:57]} 33. Bxc5 {[%clk 0:01:23]}  Rc8 {[%clk 0:01:57]} 34. Bd4 {[%clk 0:01:22]}  Kf8 {[%clk 0:01:40]} 35. c5 {[%clk 0:01:20]}  Ke8 {[%clk 0:01:41]} 36. Rc1 {[%clk 0:01:08]}  Rc6 {[%clk 0:01:34]} 37. Kf2 {[%clk 0:01:04]}  Kd8 {[%clk 0:01:27]} 38. Rcc3 {[%clk 0:00:56]}  Ke8 {[%clk 0:01:26]} 39. Ke3 {[%clk 0:00:55]}  Kd8 {[%clk 0:01:27]} 40. Kd3 {[%clk 0:00:54]}  Ke8 {[%clk 0:01:27]} 41. Kc2 {[%clk 0:00:54]}  Kd8 {[%clk 0:01:28]} 42. Rc4 {[%clk 0:00:51]}  Ke8 {[%clk 0:01:28]} 43. Bc3 {[%clk 0:00:51]}  Ra7 {[%clk 0:01:25]} 44. Bd4 {[%clk 0:00:50]}  Rb7 {[%clk 0:01:25]} 45. Rcc3 {[%clk 0:00:44]}  Rb4 {[%clk 0:01:24]} 46. Rc4 {[%clk 0:00:44]}  Rb7 {[%clk 0:01:24]} 1/2-1/2


[Site "https://www.chess.com"]

[Event "Titled Tuesday Blitz August 15 Early 2023"]
[White "Al-Tarboush, Ward"]
[Black "Polaczek, Richard"]
[WhiteFideId "7601450"]
[BlackFideId "200026"]
[WhiteElo "2528"]
[BlackElo "2362"]
[Result "1-0"]
[Round "11"]
[TimeControl "180+1"]
[Date "2023.08.15"]
[WhiteClock "0:00:12"]
[BlackClock "0:00:05"]
[Board "87"]

1. e4 {[%clk 0:02:43]}  Nf6 {[%clk 0:02:57]} 2. e5 {[%clk 0:02:43]}  Nd5 {[%clk 0:02:57]} 3. d4 {[%clk 0:02:44]}  d6 {[%clk 0:02:57]} 4. Nf3 {[%clk 0:02:45]}  g6 {[%clk 0:02:56]} 5. c4 {[%clk 0:02:43]}  Nb6 {[%clk 0:02:55]} 6. Nc3 {[%clk 0:02:43]}  Bg7 {[%clk 0:02:55]} 7. exd6 {[%clk 0:02:44]}  cxd6 {[%clk 0:02:54]} 8. Be2 {[%clk 0:02:45]}  O-O {[%clk 0:02:53]} 9. O-O {[%clk 0:02:46]}  Nc6 {[%clk 0:02:51]} 10. Be3 {[%clk 0:02:46]}  Bg4 {[%clk 0:02:50]} 11. b3 {[%clk 0:02:46]}  d5 {[%clk 0:02:50]} 12. c5 {[%clk 0:02:45]}  Nc8 {[%clk 0:02:49]} 13. h3 {[%clk 0:02:43]}  Bxf3 {[%clk 0:02:49]} 14. Bxf3 {[%clk 0:02:44]}  e6 {[%clk 0:02:49]} 15. b4 {[%clk 0:02:44]}  a6 {[%clk 0:02:46]} 16. Rb1 {[%clk 0:02:37]}  N8e7 {[%clk 0:02:45]} 17. a4 {[%clk 0:02:37]}  Nf5 {[%clk 0:02:44]} 18. Ne2 {[%clk 0:02:36]}  Nh4 {[%clk 0:02:44]} 19. Ng3 {[%clk 0:02:35]}  Qf6 {[%clk 0:02:32]} 20. Be2 {[%clk 0:02:23]}  Nxd4 {[%clk 0:02:27]} 21. b5 {[%clk 0:02:23]}  axb5 {[%clk 0:02:25]} 22. axb5 {[%clk 0:02:23]}  Nhf5 {[%clk 0:02:16]} 23. Nxf5 {[%clk 0:02:20]}  Nxf5 {[%clk 0:02:14]} 24. c6 {[%clk 0:02:18]}  bxc6 {[%clk 0:02:11]} 25. bxc6 {[%clk 0:02:19]}  Nxe3 {[%clk 0:02:10]} 26. fxe3 {[%clk 0:02:20]}  Qe5 {[%clk 0:02:10]} 27. Rf3 {[%clk 0:02:11]}  Rfc8 {[%clk 0:02:04]} 28. Bb5 {[%clk 0:02:11]}  Ra3 {[%clk 0:01:59]} 29. Qf1 {[%clk 0:02:10]}  f5 {[%clk 0:01:56]} 30. Ba6 {[%clk 0:02:08]}  Rxc6 {[%clk 0:01:50]} 31. Qb5 {[%clk 0:02:08]}  Qc7 {[%clk 0:01:32]} 32. Bb7 {[%clk 0:02:07]}  Rc1+ {[%clk 0:01:29]} 33. Rf1 {[%clk 0:02:07]}  Rxf1+ {[%clk 0:01:28]} 34. Rxf1 {[%clk 0:02:04]}  Bh6 {[%clk 0:01:21]} 35. Qe8+ {[%clk 0:02:04]}  Kg7 {[%clk 0:01:21]} 36. Bc6 {[%clk 0:02:01]}  Qf7 {[%clk 0:01:15]} 37. Qb8 {[%clk 0:01:59]}  Bxe3+ {[%clk 0:01:14]} 38. Kh1 {[%clk 0:01:59]}  Rc3 {[%clk 0:01:12]} 39. Be8 {[%clk 0:01:54]}  Qf6 {[%clk 0:01:10]} 40. Ra1 {[%clk 0:01:53]}  Rc1+ {[%clk 0:01:08]} 41. Rxc1 {[%clk 0:01:53]}  Bxc1 {[%clk 0:01:08]} 42. Qc7+ {[%clk 0:01:54]}  Kh6 {[%clk 0:01:06]} 43. Qxc1+ {[%clk 0:01:54]}  Kg7 {[%clk 0:01:03]} 44. Qc7+ {[%clk 0:01:54]}  Kh6 {[%clk 0:01:02]} 45. Bb5 {[%clk 0:01:41]}  d4 {[%clk 0:01:01]} 46. Kh2 {[%clk 0:01:37]}  e5 {[%clk 0:01:00]} 47. Bc4 {[%clk 0:01:33]}  e4 {[%clk 0:00:54]} 48. Bg8 {[%clk 0:01:34]}  d3 {[%clk 0:00:48]} 49. Qxh7+ {[%clk 0:01:33]}  Kg5 {[%clk 0:00:48]} 50. Qc7 {[%clk 0:00:44]}  f4 {[%clk 0:00:29]} 51. Qc5+ {[%clk 0:00:23]}  Kh6 {[%clk 0:00:28]} 52. Qd5 {[%clk 0:00:19]}  Qf5 {[%clk 0:00:25]} 53. Qd4 {[%clk 0:00:18]}  e3 {[%clk 0:00:19]} 54. h4 {[%clk 0:00:17]}  Kh5 {[%clk 0:00:16]} 55. Qh8+ {[%clk 0:00:10]}  Kg4 {[%clk 0:00:16]} 56. Qh6 {[%clk 0:00:10]}  f3 {[%clk 0:00:07]} 57. Be6 {[%clk 0:00:11]}  f2 {[%clk 0:00:05]} 58. Qg5# {[%clk 0:00:12]} 1-0


[Site "https://www.chess.com"]

[Event "Titled Tuesday Blitz August 15 Early 2023"]
[White "EvgenyBurmakin"]
[Black "Nguyen Hong Nhung"]
[BlackFideId "12412201"]
[WhiteElo "2304"]
[BlackElo "2492"]
[Result "0-1"]
[Round "11"]
[TimeControl "180+1"]
[Date "2023.08.15"]
[WhiteClock "0:00:10"]
[BlackClock "0:00:45"]
[Board "93"]

1. e4 {[%clk 0:03:00]}  c5 {[%clk 0:02:58]} 2. Nc3 {[%clk 0:02:58]}  e6 {[%clk 0:02:58]} 3. Nf3 {[%clk 0:02:57]}  Nc6 {[%clk 0:02:57]} 4. d4 {[%clk 0:02:57]}  cxd4 {[%clk 0:02:58]} 5. Nxd4 {[%clk 0:02:57]}  Qc7 {[%clk 0:02:58]} 6. Be3 {[%clk 0:02:36]}  a6 {[%clk 0:02:57]} 7. Be2 {[%clk 0:02:32]}  b5 {[%clk 0:02:56]} 8. a3 {[%clk 0:02:31]}  Bb7 {[%clk 0:02:56]} 9. O-O {[%clk 0:02:28]}  Nf6 {[%clk 0:02:55]} 10. f3 {[%clk 0:02:27]}  Bc5 {[%clk 0:02:46]} 11. Qd2 {[%clk 0:02:25]}  Qb6 {[%clk 0:02:40]} 12. Rad1 {[%clk 0:02:16]}  O-O {[%clk 0:02:28]} 13. Kf2 {[%clk 0:01:55]}  Nxd4 {[%clk 0:02:10]} 14. Bxd4 {[%clk 0:01:56]}  d5 {[%clk 0:02:06]} 15. exd5 {[%clk 0:01:34]}  Nxd5 {[%clk 0:02:02]} 16. Nxd5 {[%clk 0:01:29]}  Bxd5 {[%clk 0:02:03]} 17. Bxc5 {[%clk 0:01:25]}  Qxc5+ {[%clk 0:02:04]} 18. Qd4 {[%clk 0:01:21]}  Qxc2 {[%clk 0:02:01]} 19. Rc1 {[%clk 0:01:19]}  Qg6 {[%clk 0:01:55]} 20. Rc7 {[%clk 0:01:14]}  Rfc8 {[%clk 0:01:49]} 21. Rfc1 {[%clk 0:01:14]}  Rd8 {[%clk 0:01:45]} 22. Qe5 {[%clk 0:00:51]}  Qh6 {[%clk 0:01:35]} 23. h3 {[%clk 0:00:44]}  Bb3 {[%clk 0:01:23]} 24. R1c3 {[%clk 0:00:41]}  Bd1 {[%clk 0:01:12]} 25. Bxd1 {[%clk 0:00:27]}  Rxd1 {[%clk 0:01:13]} 26. Rc8+ {[%clk 0:00:26]}  Rd8 {[%clk 0:01:12]} 27. Qc7 {[%clk 0:00:23]}  Qd2+ {[%clk 0:00:53]} 28. Kg1 {[%clk 0:00:23]}  Qd1+ {[%clk 0:00:50]} 29. Kh2 {[%clk 0:00:22]}  Raxc8 {[%clk 0:00:49]} 30. Qxc8 {[%clk 0:00:21]}  Qd6+ {[%clk 0:00:49]} 31. Kg1 {[%clk 0:00:19]}  Rxc8 {[%clk 0:00:48]} 32. Rxc8+ {[%clk 0:00:19]}  Qf8 {[%clk 0:00:49]} 33. Rxf8+ {[%clk 0:00:19]}  Kxf8 {[%clk 0:00:50]} 34. Kf2 {[%clk 0:00:19]}  Ke7 {[%clk 0:00:51]} 35. Ke3 {[%clk 0:00:20]}  Kd6 {[%clk 0:00:51]} 36. Kd4 {[%clk 0:00:21]}  f6 {[%clk 0:00:52]} 37. b4 {[%clk 0:00:17]}  Kc6 {[%clk 0:00:52]} 38. f4 {[%clk 0:00:17]}  Kd6 {[%clk 0:00:52]} 39. g3 {[%clk 0:00:16]}  e5+ {[%clk 0:00:49]} 40. fxe5+ {[%clk 0:00:16]}  fxe5+ {[%clk 0:00:50]} 41. Ke4 {[%clk 0:00:16]}  Ke6 {[%clk 0:00:51]} 42. g4 {[%clk 0:00:13]}  g5 {[%clk 0:00:50]} 43. Ke3 {[%clk 0:00:13]}  Kd5 {[%clk 0:00:49]} 44. Kd3 {[%clk 0:00:13]}  e4+ {[%clk 0:00:50]} 45. Ke3 {[%clk 0:00:13]}  Ke5 {[%clk 0:00:50]} 46. Ke2 {[%clk 0:00:13]}  Kf4 {[%clk 0:00:49]} 47. Kf2 {[%clk 0:00:13]}  e3+ {[%clk 0:00:46]} 48. Ke2 {[%clk 0:00:14]}  Ke4 {[%clk 0:00:46]} 49. Ke1 {[%clk 0:00:14]}  Kf3 {[%clk 0:00:46]} 50. Kf1 {[%clk 0:00:14]}  e2+ {[%clk 0:00:46]} 51. Ke1 {[%clk 0:00:10]}  h6 {[%clk 0:00:45]} 0-1


[Site "https://www.chess.com"]

[Event "Titled Tuesday Blitz August 15 Early 2023"]
[White "arenal72"]
[Black "bteillet"]
[WhiteElo "2486"]
[BlackElo "2282"]
[Result "1-0"]
[Round "11"]
[TimeControl "180+1"]
[Date "2023.08.15"]
[WhiteClock "0:01:49"]
[BlackClock "0:01:06"]
[Board "94"]

1. e4 {[%clk 0:03:00]}  d6 {[%clk 0:02:59]} 2. d4 {[%clk 0:02:59]}  Nf6 {[%clk 0:02:59]} 3. Nc3 {[%clk 0:03:00]}  g6 {[%clk 0:02:59]} 4. Bg5 {[%clk 0:02:59]}  Bg7 {[%clk 0:02:55]} 5. e5 {[%clk 0:03:00]}  dxe5 {[%clk 0:02:54]} 6. dxe5 {[%clk 0:03:01]}  Qxd1+ {[%clk 0:02:51]} 7. Rxd1 {[%clk 0:03:01]}  Ng4 {[%clk 0:02:50]} 8. h3 {[%clk 0:02:56]}  Nxe5 {[%clk 0:02:38]} 9. Nd5 {[%clk 0:02:56]}  O-O {[%clk 0:02:27]} 10. Nxc7 {[%clk 0:02:54]}  Nbc6 {[%clk 0:02:22]} 11. Nxa8 {[%clk 0:02:54]}  Bf5 {[%clk 0:02:21]} 12. Nc7 {[%clk 0:02:54]}  Bxc2 {[%clk 0:02:21]} 13. Rd2 {[%clk 0:02:54]}  Bf5 {[%clk 0:02:14]} 14. f4 {[%clk 0:02:44]}  Nd7 {[%clk 0:02:10]} 15. Nf3 {[%clk 0:02:23]}  Nc5 {[%clk 0:02:02]} 16. Nd5 {[%clk 0:02:21]}  f6 {[%clk 0:01:56]} 17. Bh4 {[%clk 0:02:19]}  Ne4 {[%clk 0:01:53]} 18. Re2 {[%clk 0:02:12]}  g5 {[%clk 0:01:41]} 19. Bf2 {[%clk 0:01:59]}  Rd8 {[%clk 0:01:35]} 20. Ne3 {[%clk 0:01:55]}  gxf4 {[%clk 0:01:28]} 21. Nxf5 {[%clk 0:01:54]}  Ng5 {[%clk 0:01:12]} 22. Nxg5 {[%clk 0:01:52]}  fxg5 {[%clk 0:01:12]} 23. Nxe7+ {[%clk 0:01:51]}  Nxe7 {[%clk 0:01:11]} 24. Rxe7 {[%clk 0:01:52]}  Bxb2 {[%clk 0:01:10]} 25. Bc4+ {[%clk 0:01:52]}  Kf8 {[%clk 0:01:09]} 26. Rf7+ {[%clk 0:01:49]}  Ke8 {[%clk 0:01:10]} 27. Rxh7 {[%clk 0:01:49]}  Bc3+ {[%clk 0:01:09]} 28. Ke2 {[%clk 0:01:48]}  Rd2+ {[%clk 0:01:06]} 29. Kf3 {[%clk 0:01:49]} 1-0


[Site "https://www.chess.com"]

[Event "Titled Tuesday Blitz August 15 Early 2023"]
[White "Melikhov, Evgeny V."]
[Black "Deng, Henry"]
[WhiteFideId "4122046"]
[BlackFideId "30965454"]
[WhiteElo "2401"]
[BlackElo "2550"]
[Result "0-1"]
[Round "11"]
[TimeControl "180+1"]
[Date "2023.08.15"]
[WhiteClock "0:01:22"]
[BlackClock "0:01:21"]
[Board "95"]

1. d4 {[%clk 0:03:00]}  d5 {[%clk 0:02:59]} 2. c4 {[%clk 0:03:00]}  c6 {[%clk 0:03:00]} 3. Nc3 {[%clk 0:03:00]}  Nf6 {[%clk 0:03:00]} 4. e3 {[%clk 0:03:00]}  e6 {[%clk 0:02:58]} 5. Nf3 {[%clk 0:03:00]}  Nbd7 {[%clk 0:02:57]} 6. Bd3 {[%clk 0:03:00]}  dxc4 {[%clk 0:02:57]} 7. Bxc4 {[%clk 0:03:00]}  b5 {[%clk 0:02:58]} 8. Bd3 {[%clk 0:03:00]}  b4 {[%clk 0:02:55]} 9. Ne4 {[%clk 0:03:00]}  Bb7 {[%clk 0:02:54]} 10. O-O {[%clk 0:02:40]}  Nxe4 {[%clk 0:02:51]} 11. Bxe4 {[%clk 0:02:39]}  Nf6 {[%clk 0:02:52]} 12. Nd2 {[%clk 0:02:38]}  Be7 {[%clk 0:02:51]} 13. Bf3 {[%clk 0:02:37]}  O-O {[%clk 0:02:51]} 14. Nc4 {[%clk 0:02:34]}  Qc7 {[%clk 0:02:48]} 15. Bd2 {[%clk 0:02:34]}  c5 {[%clk 0:02:47]} 16. Qb3 {[%clk 0:02:25]}  Bxf3 {[%clk 0:02:38]} 17. gxf3 {[%clk 0:02:25]}  cxd4 {[%clk 0:02:29]} 18. Bxb4 {[%clk 0:02:15]}  Rfb8 {[%clk 0:02:14]} 19. Ba5 {[%clk 0:02:15]}  Qc5 {[%clk 0:02:10]} 20. Qc2 {[%clk 0:02:03]}  Rc8 {[%clk 0:02:07]} 21. Rfc1 {[%clk 0:01:58]}  Qg5+ {[%clk 0:02:00]} 22. Kf1 {[%clk 0:01:56]}  Rxc4 {[%clk 0:01:50]} 23. Qxc4 {[%clk 0:01:54]}  Qxa5 {[%clk 0:01:51]} 24. Qxd4 {[%clk 0:01:53]}  h6 {[%clk 0:01:48]} 25. a3 {[%clk 0:01:51]}  Qf5 {[%clk 0:01:46]} 26. f4 {[%clk 0:01:42]}  Rd8 {[%clk 0:01:46]} 27. Qxa7 {[%clk 0:01:37]}  Bf8 {[%clk 0:01:31]} 28. Qb7 {[%clk 0:01:35]}  Ne4 {[%clk 0:01:26]} 29. Rd1 {[%clk 0:01:30]}  Qh3+ {[%clk 0:01:23]} 30. Ke2 {[%clk 0:01:30]}  Qg4+ {[%clk 0:01:21]} 31. Ke1 {[%clk 0:01:22]}  Qg1+ {[%clk 0:01:21]} 0-1


[Site "https://www.chess.com"]

[Event "Titled Tuesday Blitz August 15 Early 2023"]
[White "Gurevich, Dmitry"]
[Black "Topalov, Aleksandar"]
[WhiteFideId "2000407"]
[BlackFideId "925659"]
[WhiteElo "2460"]
[BlackElo "2365"]
[Result "0-1"]
[Round "11"]
[TimeControl "180+1"]
[Date "2023.08.15"]
[WhiteClock "0:00:00"]
[BlackClock "0:00:04"]
[Board "98"]

1. d4 {[%clk 0:03:00]}  e6 {[%clk 0:02:55]} 2. c4 {[%clk 0:03:00]}  f5 {[%clk 0:02:55]} 3. g3 {[%clk 0:03:00]}  Nf6 {[%clk 0:02:54]} 4. Bg2 {[%clk 0:03:00]}  Be7 {[%clk 0:02:54]} 5. Nc3 {[%clk 0:02:59]}  O-O {[%clk 0:02:52]} 6. Nf3 {[%clk 0:03:00]}  d6 {[%clk 0:02:50]} 7. O-O {[%clk 0:02:58]}  Ne4 {[%clk 0:02:49]} 8. Qc2 {[%clk 0:02:57]}  Nxc3 {[%clk 0:02:48]} 9. Qxc3 {[%clk 0:02:57]}  Bf6 {[%clk 0:02:47]} 10. b3 {[%clk 0:02:58]}  Nc6 {[%clk 0:02:47]} 11. Bb2 {[%clk 0:02:58]}  e5 {[%clk 0:02:47]} 12. e3 {[%clk 0:02:54]}  e4 {[%clk 0:02:46]} 13. Nd2 {[%clk 0:02:52]}  d5 {[%clk 0:02:46]} 14. cxd5 {[%clk 0:02:50]}  Ne7 {[%clk 0:02:45]} 15. d6 {[%clk 0:02:46]}  cxd6 {[%clk 0:02:31]} 16. Rfc1 {[%clk 0:02:44]}  Nd5 {[%clk 0:02:26]} 17. Qc4 {[%clk 0:02:39]}  Be6 {[%clk 0:02:25]} 18. Qb5 {[%clk 0:02:31]}  Qe7 {[%clk 0:02:15]} 19. Bf1 {[%clk 0:02:27]}  a6 {[%clk 0:02:08]} 20. Qe2 {[%clk 0:02:21]}  Nb4 {[%clk 0:01:59]} 21. Qd1 {[%clk 0:02:15]}  Nd3 {[%clk 0:01:54]} 22. Bxd3 {[%clk 0:02:14]}  exd3 {[%clk 0:01:54]} 23. Rc3 {[%clk 0:02:00]}  Bd5 {[%clk 0:01:45]} 24. Rxd3 {[%clk 0:02:00]}  Rac8 {[%clk 0:01:28]} 25. Rc1 {[%clk 0:02:00]}  Qe6 {[%clk 0:01:03]} 26. Rdc3 {[%clk 0:01:48]}  Rc6 {[%clk 0:00:59]} 27. Rxc6 {[%clk 0:01:46]}  bxc6 {[%clk 0:00:58]} 28. Qf1 {[%clk 0:01:38]}  Bg5 {[%clk 0:00:33]} 29. Re1 {[%clk 0:01:34]}  Re8 {[%clk 0:00:25]} 30. Qxa6 {[%clk 0:01:28]}  f4 {[%clk 0:00:20]} 31. Qe2 {[%clk 0:01:08]}  fxg3 {[%clk 0:00:18]} 32. hxg3 {[%clk 0:00:57]}  Qh3 {[%clk 0:00:15]} 33. e4 {[%clk 0:00:42]}  Bxd2 {[%clk 0:00:13]} 34. Qxd2 {[%clk 0:00:40]}  Rxe4 {[%clk 0:00:10]} 35. Rxe4 {[%clk 0:00:29]}  Bxe4 {[%clk 0:00:10]} 36. f3 {[%clk 0:00:29]}  Qxg3+ {[%clk 0:00:10]} 37. Qg2 {[%clk 0:00:28]}  Qxf3 {[%clk 0:00:08]} 38. Qxf3 {[%clk 0:00:27]}  Bxf3 {[%clk 0:00:08]} 39. Ba3 {[%clk 0:00:21]}  Be4 {[%clk 0:00:04]} 40. Bxd6 {[%clk 0:00:19]}  Bd5 {[%clk 0:00:03]} 41. Kf2 {[%clk 0:00:17]}  Kf7 {[%clk 0:00:04]} 42. Ke3 {[%clk 0:00:17]}  Ke6 {[%clk 0:00:04]} 43. Bf8 {[%clk 0:00:16]}  g5 {[%clk 0:00:04]} 44. Bh6 {[%clk 0:00:12]}  Kf5 {[%clk 0:00:04]} 45. Kf2 {[%clk 0:00:11]}  Kg4 {[%clk 0:00:03]} 46. Kg1 {[%clk 0:00:07]}  Kh5 {[%clk 0:00:03]} 47. Bf8 {[%clk 0:00:06]}  Kg6 {[%clk 0:00:04]} 48. Kf2 {[%clk 0:00:05]}  h5 {[%clk 0:00:04]} 49. Be7 {[%clk 0:00:02]}  h4 {[%clk 0:00:04]} 50. Bd8 {[%clk 0:00:00]}  Kh5 {[%clk 0:00:04]} 0-1


[Site "https://www.chess.com"]

[Event "Titled Tuesday Blitz August 15 Early 2023"]
[White "Spichkin, Alexander"]
[Black "Kiselev, Pavel"]
[WhiteFideId "4144074"]
[BlackFideId "4191102"]
[WhiteElo "2455"]
[BlackElo "2330"]
[Result "1-0"]
[Round "11"]
[TimeControl "180+1"]
[Date "2023.08.15"]
[WhiteClock "0:01:08"]
[BlackClock "0:00:39"]
[Board "100"]

1. f4 {[%clk 0:02:45]}  e5 {[%clk 0:02:59]} 2. Nf3 {[%clk 0:02:46]}  exf4 {[%clk 0:02:58]} 3. d4 {[%clk 0:02:46]}  d5 {[%clk 0:02:51]} 4. Bxf4 {[%clk 0:02:46]}  Nf6 {[%clk 0:02:51]} 5. Qd3 {[%clk 0:02:44]}  c6 {[%clk 0:02:52]} 6. Nc3 {[%clk 0:02:44]}  Bd6 {[%clk 0:02:47]} 7. e3 {[%clk 0:02:42]}  Bxf4 {[%clk 0:02:47]} 8. exf4 {[%clk 0:02:42]}  Bg4 {[%clk 0:02:47]} 9. Ne5 {[%clk 0:02:41]}  Be6 {[%clk 0:02:47]} 10. O-O-O {[%clk 0:02:40]}  Na6 {[%clk 0:02:45]} 11. a3 {[%clk 0:02:40]}  Qc8 {[%clk 0:02:40]} 12. h3 {[%clk 0:02:39]}  Bf5 {[%clk 0:02:39]} 13. Qe2 {[%clk 0:02:33]}  Qe6 {[%clk 0:02:34]} 14. g4 {[%clk 0:02:32]}  Be4 {[%clk 0:02:34]} 15. Rg1 {[%clk 0:02:30]}  O-O-O {[%clk 0:02:31]} 16. g5 {[%clk 0:02:30]}  Nd7 {[%clk 0:02:28]} 17. Nxe4 {[%clk 0:02:31]}  dxe4 {[%clk 0:02:28]} 18. h4 {[%clk 0:02:30]}  f6 {[%clk 0:02:27]} 19. f5 {[%clk 0:02:13]}  Qe7 {[%clk 0:02:22]} 20. Nxc6 {[%clk 0:02:08]}  bxc6 {[%clk 0:02:16]} 21. Qxa6+ {[%clk 0:02:08]}  Kb8 {[%clk 0:02:17]} 22. Rg3 {[%clk 0:02:03]}  Nb6 {[%clk 0:02:16]} 23. Rb3 {[%clk 0:02:02]}  Rd5 {[%clk 0:02:14]} 24. Bc4 {[%clk 0:01:58]}  Rxf5 {[%clk 0:02:11]} 25. d5 {[%clk 0:01:55]}  Rd8 {[%clk 0:01:59]} 26. a4 {[%clk 0:01:39]}  cxd5 {[%clk 0:01:42]} 27. Be2 {[%clk 0:01:39]}  Ka8 {[%clk 0:01:31]} 28. a5 {[%clk 0:01:37]}  Qb7 {[%clk 0:01:21]} 29. Qb5 {[%clk 0:01:26]}  Re5 {[%clk 0:01:09]} 30. axb6 {[%clk 0:01:26]}  d4 {[%clk 0:01:08]} 31. Qa4 {[%clk 0:01:19]}  d3 {[%clk 0:01:01]} 32. cxd3 {[%clk 0:01:18]}  exd3 {[%clk 0:00:57]} 33. Rdxd3 {[%clk 0:01:18]}  Rc8+ {[%clk 0:00:56]} 34. Rdc3 {[%clk 0:01:10]}  Rxc3+ {[%clk 0:00:54]} 35. Rxc3 {[%clk 0:01:10]}  Qxb6 {[%clk 0:00:48]} 36. Bf3+ {[%clk 0:01:08]}  Kb8 {[%clk 0:00:47]} 37. Rb3 {[%clk 0:01:08]}  Rc5+ {[%clk 0:00:41]} 38. Kb1 {[%clk 0:01:08]}  Rc1+ {[%clk 0:00:39]} 39. Kxc1 {[%clk 0:01:08]} 1-0


[Site "https://www.chess.com"]

[Event "Titled Tuesday Blitz August 15 Early 2023"]
[White "Shapiro, Daniel"]
[Black "Sanhueza, Cristian"]
[WhiteFideId "2001780"]
[BlackFideId "116815"]
[WhiteElo "2311"]
[BlackElo "2425"]
[Result "0-1"]
[Round "11"]
[TimeControl "180+1"]
[Date "2023.08.15"]
[WhiteClock "0:00:22"]
[BlackClock "0:00:41"]
[Board "102"]

1. d4 {[%clk 0:03:00]}  Nf6 {[%clk 0:02:59]} 2. c4 {[%clk 0:03:00]}  g6 {[%clk 0:03:00]} 3. Nc3 {[%clk 0:02:59]}  Bg7 {[%clk 0:03:01]} 4. e4 {[%clk 0:02:59]}  d6 {[%clk 0:03:01]} 5. Be2 {[%clk 0:02:59]}  O-O {[%clk 0:03:02]} 6. Nf3 {[%clk 0:02:59]}  e5 {[%clk 0:03:02]} 7. O-O {[%clk 0:02:59]}  exd4 {[%clk 0:03:03]} 8. Nxd4 {[%clk 0:02:58]}  Re8 {[%clk 0:03:04]} 9. f3 {[%clk 0:02:57]}  Nc6 {[%clk 0:03:05]} 10. Nb3 {[%clk 0:02:39]}  a5 {[%clk 0:03:04]} 11. a3 {[%clk 0:02:31]}  a4 {[%clk 0:02:56]} 12. Nd2 {[%clk 0:02:31]}  Nh5 {[%clk 0:02:53]} 13. g3 {[%clk 0:02:20]}  Bh3 {[%clk 0:02:49]} 14. Re1 {[%clk 0:01:58]}  Bd4+ {[%clk 0:02:49]} 15. Kh1 {[%clk 0:01:59]}  Bf2 {[%clk 0:02:45]} 16. f4 {[%clk 0:01:59]}  Bxe1 {[%clk 0:02:02]} 17. Qxe1 {[%clk 0:02:00]}  Ng7 {[%clk 0:01:59]} 18. Nf3 {[%clk 0:01:35]}  Bg4 {[%clk 0:01:57]} 19. Bd2 {[%clk 0:01:33]}  Ne6 {[%clk 0:01:55]} 20. Nd5 {[%clk 0:01:30]}  Bxf3+ {[%clk 0:01:52]} 21. Bxf3 {[%clk 0:01:30]}  Ncd4 {[%clk 0:01:53]} 22. Bd1 {[%clk 0:01:22]}  c6 {[%clk 0:01:53]} 23. Nc3 {[%clk 0:01:20]}  Nc5 {[%clk 0:01:49]} 24. Be3 {[%clk 0:01:15]}  Qf6 {[%clk 0:01:26]} 25. Qg1 {[%clk 0:01:03]}  Ndb3 {[%clk 0:01:16]} 26. e5 {[%clk 0:00:40]}  dxe5 {[%clk 0:01:12]} 27. Rb1 {[%clk 0:00:40]}  b6 {[%clk 0:00:43]} 28. Bc2 {[%clk 0:00:36]}  exf4 {[%clk 0:00:42]} 29. Bxf4 {[%clk 0:00:31]}  g5 {[%clk 0:00:40]} 30. Be3 {[%clk 0:00:29]}  Qf3+ {[%clk 0:00:40]} 31. Qg2 {[%clk 0:00:26]}  Qxg2+ {[%clk 0:00:40]} 32. Kxg2 {[%clk 0:00:22]}  Rxe3 {[%clk 0:00:41]} 0-1


[Site "https://www.chess.com"]